[Event "Titled Tuesday Blitz May 31 Early 2022"]
[White "De Souza, Cristiano Gomes"]
[Black "Przybylski, Wojciech"]
[WhiteFideId "2151758"]
[BlackFideId "1117599"]
[WhiteElo "2068"]
[BlackElo "2133"]
[Result "0-1"]
[Round "09"]
[TimeControl "180+1"]
[Date "2022.06.01"]
[WhiteClock "0:00:02"]
[BlackClock "0:00:05"]

1. d4 {[%clk 0:02:59]}  d5 {[%clk 0:02:55]} 2. c4 {[%clk 0:02:57]}  dxc4 {[%clk 0:02:54]} 3. Nf3 {[%clk 0:02:54]}  Nf6 {[%clk 0:02:54]} 4. e3 {[%clk 0:02:45]}  e6 {[%clk 0:02:53]} 5. Bxc4 {[%clk 0:02:37]}  a6 {[%clk 0:02:52]} 6. a4 {[%clk 0:02:35]}  c5 {[%clk 0:02:52]} 7. O-O {[%clk 0:02:32]}  cxd4 {[%clk 0:02:51]} 8. exd4 {[%clk 0:02:32]}  Nc6 {[%clk 0:02:52]} 9. Nc3 {[%clk 0:02:32]}  Be7 {[%clk 0:02:51]} 10. Ba2 {[%clk 0:02:29]}  O-O {[%clk 0:02:50]} 11. d5 {[%clk 0:02:29]}  exd5 {[%clk 0:02:48]} 12. Nxd5 {[%clk 0:02:28]}  Nxd5 {[%clk 0:02:47]} 13. Bxd5 {[%clk 0:02:28]}  Qc7 {[%clk 0:02:43]} 14. Be3 {[%clk 0:02:25]}  Nb4 {[%clk 0:02:23]} 15. Rc1 {[%clk 0:02:19]}  Qd6 {[%clk 0:02:22]} 16. Bb3 {[%clk 0:02:15]}  Qxd1 {[%clk 0:02:07]} 17. Rfxd1 {[%clk 0:02:14]}  Nc6 {[%clk 0:01:55]} 18. Nd4 {[%clk 0:02:10]}  Ne5 {[%clk 0:01:39]} 19. Bd5 {[%clk 0:02:07]}  Rd8 {[%clk 0:01:35]} 20. Be4 {[%clk 0:01:50]}  g6 {[%clk 0:01:27]} 21. Bb1 {[%clk 0:01:11]}  Bd7 {[%clk 0:01:15]} 22. b3 {[%clk 0:01:07]}  Ng4 {[%clk 0:01:11]} 23. Rc7 {[%clk 0:01:02]}  Bd6 {[%clk 0:01:05]} 24. Rxb7 {[%clk 0:01:01]}  Bxh2+ {[%clk 0:01:04]} 25. Kf1 {[%clk 0:01:00]}  Nxe3+ {[%clk 0:00:43]} 26. fxe3 {[%clk 0:01:00]}  Bg4 {[%clk 0:00:25]} 27. Rc1 {[%clk 0:00:53]}  Rac8 {[%clk 0:00:23]} 28. Rc4 {[%clk 0:00:44]}  Be5 {[%clk 0:00:17]} 29. Bd3 {[%clk 0:00:32]}  Be6 {[%clk 0:00:10]} 30. Nxe6 {[%clk 0:00:30]}  Rxd3 {[%clk 0:00:10]} 31. Nf4 {[%clk 0:00:24]}  Rxe3 {[%clk 0:00:10]} 32. Rxc8+ {[%clk 0:00:23]}  Kg7 {[%clk 0:00:09]} 33. Nd5 {[%clk 0:00:21]}  Re4 {[%clk 0:00:08]} 34. Nb4 {[%clk 0:00:13]}  Bg3 {[%clk 0:00:07]} 35. Rc1 {[%clk 0:00:11]}  h5 {[%clk 0:00:07]} 36. Nxa6 {[%clk 0:00:10]}  h4 {[%clk 0:00:07]} 37. Nc5 {[%clk 0:00:10]}  Rf4+ {[%clk 0:00:07]} 38. Ke2 {[%clk 0:00:09]}  Rf2+ {[%clk 0:00:07]} 39. Kd3 {[%clk 0:00:09]}  Rxg2 {[%clk 0:00:07]} 40. Rc2 {[%clk 0:00:09]}  Rg1 {[%clk 0:00:06]} 41. Ne4 {[%clk 0:00:07]}  Bf4 {[%clk 0:00:06]} 42. Nf2 {[%clk 0:00:03]}  Rg3+ {[%clk 0:00:06]} 43. Ke2 {[%clk 0:00:03]}  Re3+ {[%clk 0:00:05]} 44. Kf1 {[%clk 0:00:03]}  h3 {[%clk 0:00:05]} 45. Re2 {[%clk 0:00:02]}  Rg3 {[%clk 0:00:05]} 0-1


[Site "https://www.chess.com"]

[Event "Titled Tuesday Blitz May 31 Early 2022"]
[White "Fedoseev, Vladimir"]
[Black "Sadhwani, Raunak"]
[WhiteFideId "24130737"]
[BlackFideId "35093487"]
[WhiteElo "2726"]
[BlackElo "2616"]
[Result "1-0"]
[Round "09"]
[TimeControl "180+1"]
[Date "2022.05.31"]
[WhiteClock "0:00:12"]
[BlackClock "0:00:03"]

1. e4 {[%clk 0:03:00]}  e5 {[%clk 0:03:00]} 2. Nf3 {[%clk 0:03:01]}  Nc6 {[%clk 0:03:01]} 3. Bb5 {[%clk 0:03:00]}  Nge7 {[%clk 0:03:01]} 4. c3 {[%clk 0:02:58]}  d5 {[%clk 0:03:01]} 5. Qe2 {[%clk 0:02:13]}  a6 {[%clk 0:03:01]} 6. exd5 {[%clk 0:02:08]}  Qxd5 {[%clk 0:02:55]} 7. Bc4 {[%clk 0:02:06]}  Qd6 {[%clk 0:02:56]} 8. Ng5 {[%clk 0:02:02]}  Nd8 {[%clk 0:02:56]} 9. O-O {[%clk 0:01:57]}  f6 {[%clk 0:02:20]} 10. Ne4 {[%clk 0:01:54]}  Qc6 {[%clk 0:02:13]} 11. f4 {[%clk 0:01:54]}  exf4 {[%clk 0:02:02]} 12. d4 {[%clk 0:01:52]}  Be6 {[%clk 0:02:00]} 13. Bd3 {[%clk 0:01:47]}  Bf5 {[%clk 0:01:38]} 14. Bxf4 {[%clk 0:01:36]}  Ne6 {[%clk 0:01:36]} 15. Bg3 {[%clk 0:01:35]}  Bg6 {[%clk 0:01:13]} 16. Nbd2 {[%clk 0:01:26]}  O-O-O {[%clk 0:01:09]} 17. Rae1 {[%clk 0:01:26]}  Kb8 {[%clk 0:00:52]} 18. Bc4 {[%clk 0:00:44]}  Nf5 {[%clk 0:00:40]} 19. Bf2 {[%clk 0:00:36]}  Nf4 {[%clk 0:00:38]} 20. Qf3 {[%clk 0:00:34]}  Nd5 {[%clk 0:00:37]} 21. g4 {[%clk 0:00:21]}  Nh6 {[%clk 0:00:32]} 22. Bg3 {[%clk 0:00:20]}  f5 {[%clk 0:00:22]} 23. Nf2 {[%clk 0:00:18]}  fxg4 {[%clk 0:00:19]} 24. Nxg4 {[%clk 0:00:18]}  Nxg4 {[%clk 0:00:18]} 25. Qxg4 {[%clk 0:00:19]}  Bd6 {[%clk 0:00:16]} 26. Re6 {[%clk 0:00:18]}  Rhe8 {[%clk 0:00:16]} 27. Rfe1 {[%clk 0:00:17]}  Rxe6 {[%clk 0:00:14]} 28. Rxe6 {[%clk 0:00:18]}  Bf7 {[%clk 0:00:15]} 29. Re1 {[%clk 0:00:14]}  Bxg3 {[%clk 0:00:11]} 30. Qxg3 {[%clk 0:00:14]}  Bg6 {[%clk 0:00:09]} 31. Bb3 {[%clk 0:00:14]}  Nf6 {[%clk 0:00:09]} 32. Nf3 {[%clk 0:00:14]}  Re8 {[%clk 0:00:10]} 33. Ne5 {[%clk 0:00:13]}  Qd6 {[%clk 0:00:10]} 34. Rf1 {[%clk 0:00:13]}  Nh5 {[%clk 0:00:06]} 35. Qg5 {[%clk 0:00:13]}  Nf6 {[%clk 0:00:07]} 36. Qf4 {[%clk 0:00:13]}  Nh5 {[%clk 0:00:07]} 37. Qf3 {[%clk 0:00:13]}  Nf6 {[%clk 0:00:07]} 38. Re1 {[%clk 0:00:13]}  Re7 {[%clk 0:00:07]} 39. Qg3 {[%clk 0:00:13]}  Be8 {[%clk 0:00:06]} 40. Kf1 {[%clk 0:00:12]}  Ka8 {[%clk 0:00:06]} 41. Re2 {[%clk 0:00:11]}  Bb5 {[%clk 0:00:07]} 42. Bc4 {[%clk 0:00:11]}  Rxe5 {[%clk 0:00:03]} 43. dxe5 {[%clk 0:00:11]}  Qd1+ {[%clk 0:00:03]} 44. Re1 {[%clk 0:00:12]}  Bxc4+ {[%clk 0:00:03]} 45. Kg1 {[%clk 0:00:13]}  Qc2 {[%clk 0:00:02]} 46. exf6 {[%clk 0:00:13]}  gxf6 {[%clk 0:00:03]} 47. Qxc7 {[%clk 0:00:12]}  Qxb2 {[%clk 0:00:03]} 48. Qxc4 {[%clk 0:00:12]} 1-0


[Site "https://www.chess.com"]

[Event "Titled Tuesday Blitz May 31 Early 2022"]
[White "Gong, Patrick"]
[Black "Molina, Roberto Junio Brito"]
[WhiteFideId "3222500"]
[BlackFideId "2109450"]
[WhiteElo "2103"]
[BlackElo "2432"]
[Result "0-1"]
[Round "09"]
[TimeControl "180+1"]
[Date "2022.05.31"]
[WhiteClock "0:00:09"]
[BlackClock "0:00:07"]

1. e4 {[%clk 0:02:59]}  c6 {[%clk 0:03:00]} 2. d4 {[%clk 0:02:57]}  d5 {[%clk 0:03:00]} 3. e5 {[%clk 0:02:55]}  Bf5 {[%clk 0:03:00]} 4. Nf3 {[%clk 0:02:55]}  e6 {[%clk 0:03:00]} 5. Be2 {[%clk 0:02:56]}  Nd7 {[%clk 0:03:01]} 6. Be3 {[%clk 0:02:54]}  h6 {[%clk 0:03:01]} 7. O-O {[%clk 0:02:52]}  Ne7 {[%clk 0:03:01]} 8. c4 {[%clk 0:02:45]}  dxc4 {[%clk 0:03:01]} 9. Bxc4 {[%clk 0:02:37]}  Nb6 {[%clk 0:03:00]} 10. Bb3 {[%clk 0:02:35]}  Ned5 {[%clk 0:03:00]} 11. Nc3 {[%clk 0:02:35]}  Be7 {[%clk 0:02:59]} 12. a4 {[%clk 0:02:31]}  a5 {[%clk 0:02:59]} 13. Rc1 {[%clk 0:02:25]}  O-O {[%clk 0:02:58]} 14. h3 {[%clk 0:02:17]}  Qd7 {[%clk 0:02:52]} 15. Qe2 {[%clk 0:02:07]}  Rfd8 {[%clk 0:02:50]} 16. Rcd1 {[%clk 0:02:05]}  Bb4 {[%clk 0:02:44]} 17. Bd2 {[%clk 0:01:58]}  Qe7 {[%clk 0:02:43]} 18. Ne4 {[%clk 0:01:54]}  Bxd2 {[%clk 0:02:36]} 19. Nfxd2 {[%clk 0:01:53]}  Qb4 {[%clk 0:02:18]} 20. Nd6 {[%clk 0:01:33]}  Rd7 {[%clk 0:00:57]} 21. Qf3 {[%clk 0:00:56]}  Bg6 {[%clk 0:00:51]} 22. N2c4 {[%clk 0:00:51]}  Nxc4 {[%clk 0:00:48]} 23. Nxc4 {[%clk 0:00:44]}  b5 {[%clk 0:00:36]} 24. axb5 {[%clk 0:00:42]}  cxb5 {[%clk 0:00:34]} 25. Nd6 {[%clk 0:00:42]}  Nc7 {[%clk 0:00:14]} 26. Rc1 {[%clk 0:00:37]}  Rad8 {[%clk 0:00:13]} 27. Rfd1 {[%clk 0:00:26]}  a4 {[%clk 0:00:13]} 28. Bc2 {[%clk 0:00:25]}  Bxc2 {[%clk 0:00:07]} 29. Rxc2 {[%clk 0:00:26]}  Nd5 {[%clk 0:00:08]} 30. Qa3 {[%clk 0:00:23]}  Qxa3 {[%clk 0:00:08]} 31. bxa3 {[%clk 0:00:24]}  Rc7 {[%clk 0:00:08]} 32. Rc5 {[%clk 0:00:22]}  Rxc5 {[%clk 0:00:05]} 33. dxc5 {[%clk 0:00:23]}  Rb8 {[%clk 0:00:06]} 34. Rb1 {[%clk 0:00:22]}  Nc7 {[%clk 0:00:07]} 35. c6 {[%clk 0:00:19]}  Kf8 {[%clk 0:00:07]} 36. Nb7 {[%clk 0:00:20]}  Ke7 {[%clk 0:00:07]} 37. Rd1 {[%clk 0:00:20]}  Nd5 {[%clk 0:00:07]} 38. Rd4 {[%clk 0:00:20]}  Rc8 {[%clk 0:00:07]} 39. Na5 {[%clk 0:00:19]}  Kd8 {[%clk 0:00:05]} 40. Rg4 {[%clk 0:00:14]}  g6 {[%clk 0:00:05]} 41. Rh4 {[%clk 0:00:14]}  h5 {[%clk 0:00:05]} 42. g4 {[%clk 0:00:15]}  hxg4 {[%clk 0:00:05]} 43. hxg4 {[%clk 0:00:13]}  Kc7 {[%clk 0:00:06]} 44. Rh7 {[%clk 0:00:13]}  Kb6 {[%clk 0:00:06]} 45. Nb7 {[%clk 0:00:12]}  Rc7 {[%clk 0:00:07]} 46. Nd6 {[%clk 0:00:12]}  Kxc6 {[%clk 0:00:07]} 47. Nxf7 {[%clk 0:00:12]}  Kb6 {[%clk 0:00:06]} 48. Rg7 {[%clk 0:00:08]}  b4 {[%clk 0:00:06]} 49. axb4 {[%clk 0:00:08]}  a3 {[%clk 0:00:06]} 50. Rxg6 {[%clk 0:00:08]}  Rxf7 {[%clk 0:00:07]} 51. Rxe6+ {[%clk 0:00:09]}  Kb5 {[%clk 0:00:07]} 52. Re8 {[%clk 0:00:09]}  Ra7 {[%clk 0:00:07]} 53. Ra8 {[%clk 0:00:09]}  Rxa8 {[%clk 0:00:07]} 0-1


[Site "https://www.chess.com"]

[Event "Titled Tuesday Blitz May 31 Early 2022"]
[White "Gracia Alvarez, Gerardo Antonio"]
[Black "Korchmar, Vasiliy"]
[WhiteFideId "5109124"]
[BlackFideId "24131750"]
[WhiteElo "2139"]
[BlackElo "2370"]
[Result "0-1"]
[Round "09"]
[TimeControl "180+1"]
[Date "2022.05.31"]
[WhiteClock "0:00:20"]
[BlackClock "0:02:14"]

1. e4 {[%clk 0:03:00]}  c5 {[%clk 0:03:00]} 2. Nc3 {[%clk 0:03:00]}  d6 {[%clk 0:02:59]} 3. d4 {[%clk 0:03:00]}  cxd4 {[%clk 0:03:00]} 4. Qxd4 {[%clk 0:03:01]}  Nc6 {[%clk 0:03:00]} 5. Qd2 {[%clk 0:03:01]}  g6 {[%clk 0:03:01]} 6. b3 {[%clk 0:03:01]}  Bh6 {[%clk 0:03:01]} 7. f4 {[%clk 0:03:01]}  Nf6 {[%clk 0:03:02]} 8. Bb2 {[%clk 0:02:59]}  O-O {[%clk 0:03:03]} 9. O-O-O {[%clk 0:02:56]}  a5 {[%clk 0:03:04]} 10. a4 {[%clk 0:02:49]}  Nb4 {[%clk 0:03:03]} 11. Kb1 {[%clk 0:02:33]}  Qb6 {[%clk 0:03:04]} 12. h3 {[%clk 0:02:18]}  Be6 {[%clk 0:03:02]} 13. g4 {[%clk 0:02:12]}  Bg7 {[%clk 0:03:02]} 14. f5 {[%clk 0:01:54]}  Bd7 {[%clk 0:02:58]} 15. Bg2 {[%clk 0:01:34]}  Rac8 {[%clk 0:02:58]} 16. Nge2 {[%clk 0:01:34]}  Bc6 {[%clk 0:02:54]} 17. Bf3 {[%clk 0:01:14]}  Rc7 {[%clk 0:02:54]} 18. h4 {[%clk 0:01:13]}  Rfc8 {[%clk 0:02:54]} 19. Nd4 {[%clk 0:00:55]}  Bxe4 {[%clk 0:02:51]} 20. Nxe4 {[%clk 0:00:52]}  Nxc2 {[%clk 0:02:42]} 21. Rc1 {[%clk 0:00:41]}  Nxe4 {[%clk 0:02:24]} 22. Bxe4 {[%clk 0:00:31]}  Nxd4 {[%clk 0:02:24]} 23. Rxc7 {[%clk 0:00:21]}  Rxc7 {[%clk 0:02:23]} 24. Qe3 {[%clk 0:00:19]}  Qxb3 {[%clk 0:02:15]} 25. fxg6 {[%clk 0:00:20]}  Qxe3 {[%clk 0:02:14]} 0-1


[Site "https://www.chess.com"]

[Event "Titled Tuesday Blitz May 31 Early 2022"]
[White "Hambleton, Aman"]
[Black "Yuan, Qingyu"]
[WhiteFideId "2606577"]
[BlackFideId "8609772"]
[WhiteElo "2552"]
[BlackElo "2359"]
[Result "1-0"]
[Round "09"]
[TimeControl "180+1"]
[Date "2022.05.31"]
[WhiteClock "0:00:11"]
[BlackClock "0:00:07"]

1. d4 {[%clk 0:02:58]}  d5 {[%clk 0:03:00]} 2. c4 {[%clk 0:02:57]}  e6 {[%clk 0:03:00]} 3. Nc3 {[%clk 0:02:54]}  Nf6 {[%clk 0:03:00]} 4. cxd5 {[%clk 0:02:54]}  exd5 {[%clk 0:03:00]} 5. Bg5 {[%clk 0:02:54]}  c6 {[%clk 0:03:00]} 6. e3 {[%clk 0:02:53]}  h6 {[%clk 0:03:01]} 7. Bh4 {[%clk 0:02:53]}  Be7 {[%clk 0:03:01]} 8. Bd3 {[%clk 0:02:53]}  O-O {[%clk 0:03:02]} 9. Nge2 {[%clk 0:02:53]}  Re8 {[%clk 0:03:00]} 10. f3 {[%clk 0:02:47]}  Nh5 {[%clk 0:02:35]} 11. Bf2 {[%clk 0:01:22]}  Bh4 {[%clk 0:02:06]} 12. g3 {[%clk 0:01:07]}  Be7 {[%clk 0:01:52]} 13. g4 {[%clk 0:00:59]}  Nf6 {[%clk 0:01:51]} 14. h3 {[%clk 0:00:44]}  c5 {[%clk 0:01:46]} 15. O-O {[%clk 0:00:38]}  Nc6 {[%clk 0:01:43]} 16. Kg2 {[%clk 0:00:36]}  cxd4 {[%clk 0:01:39]} 17. Nxd4 {[%clk 0:00:32]}  Nxd4 {[%clk 0:01:22]} 18. exd4 {[%clk 0:00:33]}  Bd6 {[%clk 0:01:17]} 19. Qb3 {[%clk 0:00:24]}  Be6 {[%clk 0:01:14]} 20. Ne2 {[%clk 0:00:15]}  Rb8 {[%clk 0:00:48]} 21. Bg3 {[%clk 0:00:10]}  b5 {[%clk 0:00:47]} 22. Rfe1 {[%clk 0:00:08]}  a5 {[%clk 0:00:45]} 23. Rac1 {[%clk 0:00:07]}  a4 {[%clk 0:00:37]} 24. Qc2 {[%clk 0:00:06]}  Rc8 {[%clk 0:00:31]} 25. Qd2 {[%clk 0:00:06]}  Bxg3 {[%clk 0:00:21]} 26. Nxg3 {[%clk 0:00:04]}  Qb6 {[%clk 0:00:21]} 27. Qb4 {[%clk 0:00:02]}  Bd7 {[%clk 0:00:21]} 28. Rxc8 {[%clk 0:00:01]}  Rxc8 {[%clk 0:00:20]} 29. Ne2 {[%clk 0:00:02]}  Ne8 {[%clk 0:00:14]} 30. Rc1 {[%clk 0:00:02]}  Rxc1 {[%clk 0:00:13]} 31. Nxc1 {[%clk 0:00:03]}  Qd6 {[%clk 0:00:12]} 32. Qxd6 {[%clk 0:00:03]}  Nxd6 {[%clk 0:00:13]} 33. b3 {[%clk 0:00:04]}  b4 {[%clk 0:00:10]} 34. Kf2 {[%clk 0:00:04]}  Kf8 {[%clk 0:00:09]} 35. Ke3 {[%clk 0:00:04]}  a3 {[%clk 0:00:09]} 36. Bc2 {[%clk 0:00:03]}  Nb5 {[%clk 0:00:09]} 37. Nd3 {[%clk 0:00:03]}  Ke7 {[%clk 0:00:07]} 38. Nxb4 {[%clk 0:00:04]}  Kd6 {[%clk 0:00:07]} 39. Bd3 {[%clk 0:00:04]}  Nc7 {[%clk 0:00:06]} 40. Nc2 {[%clk 0:00:04]}  f5 {[%clk 0:00:04]} 41. Nxa3 {[%clk 0:00:03]}  fxg4 {[%clk 0:00:05]} 42. fxg4 {[%clk 0:00:04]}  Ne6 {[%clk 0:00:05]} 43. Nc2 {[%clk 0:00:04]}  Ng5 {[%clk 0:00:06]} 44. Bf1 {[%clk 0:00:04]}  Ne6 {[%clk 0:00:05]} 45. Be2 {[%clk 0:00:04]}  g5 {[%clk 0:00:06]} 46. Bf1 {[%clk 0:00:03]}  Nf4 {[%clk 0:00:07]} 47. a4 {[%clk 0:00:04]}  Be8 {[%clk 0:00:07]} 48. Ne1 {[%clk 0:00:04]}  Bg6 {[%clk 0:00:07]} 49. Kd2 {[%clk 0:00:03]}  Kc6 {[%clk 0:00:07]} 50. Kc3 {[%clk 0:00:03]}  Be4 {[%clk 0:00:08]} 51. b4 {[%clk 0:00:03]}  h5 {[%clk 0:00:07]} 52. gxh5 {[%clk 0:00:02]}  Nxh5 {[%clk 0:00:07]} 53. b5+ {[%clk 0:00:03]}  Kb6 {[%clk 0:00:08]} 54. Kb4 {[%clk 0:00:04]}  Nf4 {[%clk 0:00:08]} 55. a5+ {[%clk 0:00:04]}  Kb7 {[%clk 0:00:09]} 56. b6 {[%clk 0:00:04]}  Bf5 {[%clk 0:00:09]} 57. Nf3 {[%clk 0:00:03]}  Bxh3 {[%clk 0:00:07]} 58. Bxh3 {[%clk 0:00:03]}  Nxh3 {[%clk 0:00:08]} 59. Kb5 {[%clk 0:00:04]}  g4 {[%clk 0:00:08]} 60. a6+ {[%clk 0:00:05]}  Kb8 {[%clk 0:00:08]} 61. Nh4 {[%clk 0:00:05]}  g3 {[%clk 0:00:08]} 62. Kc6 {[%clk 0:00:05]}  Nf4 {[%clk 0:00:07]} 63. a7+ {[%clk 0:00:06]}  Ka8 {[%clk 0:00:06]} 64. Kc7 {[%clk 0:00:07]}  Ne6+ {[%clk 0:00:07]} 65. Kc8 {[%clk 0:00:07]}  Nc5 {[%clk 0:00:05]} 66. dxc5 {[%clk 0:00:08]}  d4 {[%clk 0:00:05]} 67. b7+ {[%clk 0:00:09]}  Kxa7 {[%clk 0:00:06]} 68. b8=Q+ {[%clk 0:00:10]}  Ka6 {[%clk 0:00:07]} 69. Qb6# {[%clk 0:00:11]} 1-0


[Site "https://www.chess.com"]

[Event "Titled Tuesday Blitz May 31 Early 2022"]
[White "Harsha Bharathakoti"]
[Black "Jumabayev, Rinat"]
[WhiteFideId "5078776"]
[BlackFideId "13702661"]
[WhiteElo "2575"]
[BlackElo "2561"]
[Result "1-0"]
[Round "09"]
[TimeControl "180+1"]
[Date "2022.05.31"]
[WhiteClock "0:00:09"]
[BlackClock "0:00:03"]

1. e4 {[%clk 0:03:00]}  c6 {[%clk 0:02:59]} 2. d4 {[%clk 0:02:59]}  d5 {[%clk 0:03:00]} 3. e5 {[%clk 0:02:59]}  c5 {[%clk 0:03:00]} 4. Nf3 {[%clk 0:02:58]}  cxd4 {[%clk 0:03:00]} 5. Qxd4 {[%clk 0:02:59]}  Nc6 {[%clk 0:02:58]} 6. Qf4 {[%clk 0:02:59]}  e6 {[%clk 0:02:58]} 7. Bd3 {[%clk 0:02:59]}  Nb4 {[%clk 0:02:57]} 8. Nc3 {[%clk 0:02:57]}  Bd7 {[%clk 0:02:57]} 9. O-O {[%clk 0:02:56]}  Rc8 {[%clk 0:02:54]} 10. Be3 {[%clk 0:02:51]}  a6 {[%clk 0:02:48]} 11. a3 {[%clk 0:02:48]}  Nxd3 {[%clk 0:02:48]} 12. cxd3 {[%clk 0:02:49]}  Nh6 {[%clk 0:02:41]} 13. Nd4 {[%clk 0:02:46]}  f6 {[%clk 0:02:22]} 14. Rfe1 {[%clk 0:02:28]}  Kf7 {[%clk 0:01:14]} 15. Qf3 {[%clk 0:01:59]}  Bc5 {[%clk 0:00:54]} 16. Qh5+ {[%clk 0:01:38]}  Kg8 {[%clk 0:00:50]} 17. Bxh6 {[%clk 0:01:38]}  Bxd4 {[%clk 0:00:48]} 18. Qg4 {[%clk 0:01:36]}  Qf8 {[%clk 0:00:41]} 19. Qxd4 {[%clk 0:01:34]}  gxh6 {[%clk 0:00:40]} 20. exf6 {[%clk 0:01:34]}  Kf7 {[%clk 0:00:37]} 21. Re3 {[%clk 0:01:01]}  Rg8 {[%clk 0:00:35]} 22. Nxd5 {[%clk 0:00:52]}  Qd6 {[%clk 0:00:34]} 23. Qe5 {[%clk 0:00:42]}  Qxe5 {[%clk 0:00:34]} 24. Rxe5 {[%clk 0:00:43]}  Rc5 {[%clk 0:00:35]} 25. Rae1 {[%clk 0:00:35]}  Rgc8 {[%clk 0:00:09]} 26. Nc3 {[%clk 0:00:31]}  Rxe5 {[%clk 0:00:07]} 27. Rxe5 {[%clk 0:00:32]}  Kxf6 {[%clk 0:00:08]} 28. Re3 {[%clk 0:00:27]}  Bc6 {[%clk 0:00:09]} 29. f3 {[%clk 0:00:27]}  Rd8 {[%clk 0:00:09]} 30. Kf2 {[%clk 0:00:27]}  Rd4 {[%clk 0:00:09]} 31. Ke2 {[%clk 0:00:27]}  e5 {[%clk 0:00:09]} 32. Kd2 {[%clk 0:00:24]}  h5 {[%clk 0:00:08]} 33. Ne4+ {[%clk 0:00:23]}  Kg6 {[%clk 0:00:08]} 34. Ng3 {[%clk 0:00:18]}  h4 {[%clk 0:00:06]} 35. Ne2 {[%clk 0:00:17]}  Rd5 {[%clk 0:00:06]} 36. Re4 {[%clk 0:00:11]}  h3 {[%clk 0:00:05]} 37. gxh3 {[%clk 0:00:09]}  Kf5 {[%clk 0:00:05]} 38. Ng3+ {[%clk 0:00:09]}  Kf6 {[%clk 0:00:05]} 39. Ke3 {[%clk 0:00:07]}  Rd7 {[%clk 0:00:05]} 40. Rh4 {[%clk 0:00:07]}  Bb5 {[%clk 0:00:05]} 41. Ne4+ {[%clk 0:00:07]}  Kg6 {[%clk 0:00:05]} 42. Nf2 {[%clk 0:00:07]}  Rc7 {[%clk 0:00:03]} 43. a4 {[%clk 0:00:04]}  Bd7 {[%clk 0:00:03]} 44. Kd2 {[%clk 0:00:05]}  Bf5 {[%clk 0:00:03]} 45. Rb4 {[%clk 0:00:04]}  Rd7 {[%clk 0:00:03]} 46. h4 {[%clk 0:00:04]}  Kh5 {[%clk 0:00:03]} 47. Ke3 {[%clk 0:00:04]}  Rd5 {[%clk 0:00:03]} 48. Rc4 {[%clk 0:00:04]}  Rd7 {[%clk 0:00:03]} 49. Rc5 {[%clk 0:00:04]}  Re7 {[%clk 0:00:04]} 50. b4 {[%clk 0:00:04]}  Kxh4 {[%clk 0:00:04]} 51. a5 {[%clk 0:00:05]}  Kh5 {[%clk 0:00:04]} 52. f4 {[%clk 0:00:03]}  Kg6 {[%clk 0:00:03]} 53. Rxe5 {[%clk 0:00:04]}  Rd7 {[%clk 0:00:03]} 54. Ne4 {[%clk 0:00:04]}  Rc7 {[%clk 0:00:02]} 55. Rc5 {[%clk 0:00:04]}  Rd7 {[%clk 0:00:02]} 56. Rc4 {[%clk 0:00:03]}  h5 {[%clk 0:00:02]} 57. Rd4 {[%clk 0:00:04]}  Re7 {[%clk 0:00:02]} 58. Rd6+ {[%clk 0:00:04]}  Kg7 {[%clk 0:00:02]} 59. h4 {[%clk 0:00:05]}  Bg4 {[%clk 0:00:02]} 60. Kd4 {[%clk 0:00:06]}  Rc7 {[%clk 0:00:03]} 61. Nc5 {[%clk 0:00:05]}  Rf7 {[%clk 0:00:03]} 62. Ke5 {[%clk 0:00:06]}  Re7+ {[%clk 0:00:04]} 63. Ne6+ {[%clk 0:00:07]}  Kf7 {[%clk 0:00:04]} 64. f5 {[%clk 0:00:07]}  Bh3 {[%clk 0:00:05]} 65. d4 {[%clk 0:00:08]}  Bg4 {[%clk 0:00:03]} 66. d5 {[%clk 0:00:08]}  Bh3 {[%clk 0:00:03]} 67. Rd8 {[%clk 0:00:09]}  Bg4 {[%clk 0:00:03]} 68. Rf8# {[%clk 0:00:09]} 1-0


[Site "https://www.chess.com"]

[Event "Titled Tuesday Blitz May 31 Early 2022"]
[White "Jobava, Baadur"]
[Black "Yilmaz, Mustafa"]
[WhiteFideId "13601520"]
[BlackFideId "6302718"]
[WhiteElo "2617"]
[BlackElo "2568"]
[Result "1-0"]
[Round "09"]
[TimeControl "180+1"]
[Date "2022.05.31"]
[WhiteClock "0:01:37"]
[BlackClock "0:00:01"]

1. b3 {[%clk 0:03:00]}  d5 {[%clk 0:02:57]} 2. Bb2 {[%clk 0:03:01]}  Bf5 {[%clk 0:02:57]} 3. d3 {[%clk 0:03:01]}  e6 {[%clk 0:02:54]} 4. Nd2 {[%clk 0:03:02]}  h6 {[%clk 0:02:52]} 5. g3 {[%clk 0:03:02]}  c6 {[%clk 0:02:46]} 6. Bg2 {[%clk 0:03:03]}  Nd7 {[%clk 0:02:46]} 7. e4 {[%clk 0:03:02]}  Bh7 {[%clk 0:02:46]} 8. Ne2 {[%clk 0:03:03]}  Ngf6 {[%clk 0:02:44]} 9. e5 {[%clk 0:02:57]}  Ng8 {[%clk 0:02:44]} 10. O-O {[%clk 0:02:57]}  Bb4 {[%clk 0:02:42]} 11. Nf4 {[%clk 0:02:52]}  Ne7 {[%clk 0:02:38]} 12. Nf3 {[%clk 0:02:51]}  O-O {[%clk 0:02:31]} 13. h4 {[%clk 0:02:51]}  Ng6 {[%clk 0:02:23]} 14. Nh5 {[%clk 0:02:46]}  a5 {[%clk 0:02:20]} 15. a3 {[%clk 0:02:44]}  Be7 {[%clk 0:02:20]} 16. Re1 {[%clk 0:02:44]}  Qb6 {[%clk 0:02:02]} 17. Rb1 {[%clk 0:02:40]}  Rae8 {[%clk 0:01:59]} 18. Qd2 {[%clk 0:02:34]}  c5 {[%clk 0:01:47]} 19. Nh2 {[%clk 0:02:28]}  Kh8 {[%clk 0:00:45]} 20. Ng4 {[%clk 0:02:24]}  Rg8 {[%clk 0:00:46]} 21. Bxd5 {[%clk 0:02:10]}  exd5 {[%clk 0:00:30]} 22. e6 {[%clk 0:02:11]}  fxe6 {[%clk 0:00:25]} 23. Nxh6 {[%clk 0:02:11]}  Ref8 {[%clk 0:00:17]} 24. d4 {[%clk 0:01:40]}  cxd4 {[%clk 0:00:11]} 25. Bxd4 {[%clk 0:01:40]}  Bc5 {[%clk 0:00:11]} 26. Bxc5 {[%clk 0:01:37]}  Nxc5 {[%clk 0:00:01]} 27. Nxg8 {[%clk 0:01:37]} 1-0


[Site "https://www.chess.com"]